[Event "Early-Titled-Tuesday-Blitz-October-03-2023"]
[Site "Chess.com"]
[Date "2023.10.03"]
[Round "7"]
[White "K_A_S_T_O_R"]
[Black "Sanyura"]
[Result "1-0"]
[WhiteElo "2891"]
[BlackElo "2663"]
[TimeControl "180+1"]
[EndTime "9:20:00 PDT"]
[Termination "K_A_S_T_O_R won by resignation"]

1. e4 {[%clk 0:02:56.6]} 1... c5 {[%clk 0:02:54.5]} 2. Nf3 {[%clk 0:02:56.3]}
2... e6 {[%clk 0:02:55.1]} 3. d4 {[%clk 0:02:56.5]} 3... cxd4 {[%clk 0:02:56]}
4. Nxd4 {[%clk 0:02:57]} 4... Nf6 {[%clk 0:02:56.7]} 5. Nc3 {[%clk 0:02:56.3]}
5... Nc6 {[%clk 0:02:57.1]} 6. Ndb5 {[%clk 0:02:55.1]} 6... Bc5 {[%clk
0:02:56.7]} 7. Bf4 {[%clk 0:02:51.6]} 7... O-O {[%clk 0:02:56.9]} 8. Bc7 {[%clk
0:02:52.2]} 8... Qe7 {[%clk 0:02:57.3]} 9. Bd6 {[%clk 0:02:52.7]} 9... Bxd6
{[%clk 0:02:57.9]} 10. Qxd6 {[%clk 0:02:53.3]} 10... Qd8 {[%clk 0:02:58.5]} 11.
O-O-O {[%clk 0:02:53.8]} 11... a6 {[%clk 0:02:58.6]} 12. Nd4 {[%clk 0:02:54.4]}
12... Ne7 {[%clk 0:02:59]} 13. f3 {[%clk 0:02:52.3]} 13... b5 {[%clk 0:02:59.4]}
14. a3 {[%clk 0:02:51.5]} 14... Ne8 {[%clk 0:02:58.1]} 15. Qg3 {[%clk 0:02:49]}
15... Qb6 {[%clk 0:02:53.3]} 16. Qe1 {[%clk 0:02:46.6]} 16... Bb7 {[%clk
0:02:48.9]} 17. Nb3 {[%clk 0:02:41.8]} 17... d5 {[%clk 0:02:44.8]} 18. exd5
{[%clk 0:02:30.6]} 18... Nxd5 {[%clk 0:02:45.7]} 19. Nxd5 {[%clk 0:02:24.4]}
19... Bxd5 {[%clk 0:02:45.8]} 20. Kb1 {[%clk 0:02:24.4]} 20... a5 {[%clk
0:02:35.8]} 21. Qc3 {[%clk 0:02:13.7]} 21... a4 {[%clk 0:02:14.2]} 22. Qc5
{[%clk 0:02:05]} 22... Qb8 {[%clk 0:01:30.9]} 23. Nd4 {[%clk 0:02:04]} 23... Nd6
{[%clk 0:01:30.6]} 24. Nxb5 {[%clk 0:01:54.4]} 24... Nxb5 {[%clk 0:01:26.4]} 25.
Bxb5 {[%clk 0:01:43.3]} 25... Ra5 {[%clk 0:00:55.8]} 26. c4 {[%clk 0:01:42.5]}
26... Bxc4 {[%clk 0:00:50.7]} 27. Qxc4 {[%clk 0:01:42.9]} 27... Rxb5 {[%clk
0:00:51.1]} 28. Rd2 {[%clk 0:01:43.4]} 28... h6 {[%clk 0:00:42.8]} 29. Qxa4
{[%clk 0:01:40]} 29... Qb6 {[%clk 0:00:39.8]} 30. Qd4 {[%clk 0:01:39.3]} 30...
Qa6 {[%clk 0:00:34.4]} 31. Qe3 {[%clk 0:01:32.9]} 31... Rfb8 {[%clk 0:00:32.7]}
32. Ka2 {[%clk 0:01:31.9]} 32... Qb7 {[%clk 0:00:27.1]} 33. Rb1 {[%clk
0:01:16.4]} 33... Rb3 {[%clk 0:00:26.9]} 34. Rd8+ {[%clk 0:01:12.9]} 34... Rxd8
{[%clk 0:00:23.9]} 35. Qxb3 {[%clk 0:01:12.7]} 35... Qa7 {[%clk 0:00:20.5]} 36.
Rd1 {[%clk 0:01:10.7]} 36... Rb8 {[%clk 0:00:19.9]} 37. Qc2 {[%clk 0:01:08.8]}
37... Qb6 {[%clk 0:00:17.9]} 38. Rd3 {[%clk 0:01:06.5]} 38... e5 {[%clk
0:00:17]} 39. h3 {[%clk 0:00:58.5]} 39... Qe6+ {[%clk 0:00:13.5]} 40. Ka1 {[%clk
0:00:58.6]} 40... f5 {[%clk 0:00:12.7]} 41. Re3 {[%clk 0:00:56.9]} 41... Rd8
{[%clk 0:00:08.7]} 42. Qb3 {[%clk 0:00:55.6]} 42... Kf7 {[%clk 0:00:07.7]} 43.
Qxe6+ {[%clk 0:00:46.6]} 43... Kxe6 {[%clk 0:00:08.6]} 44. a4 {[%clk 0:00:47.1]}
44... Rd2 {[%clk 0:00:08.4]} 45. a5 {[%clk 0:00:44.4]} 45... Rd5 {[%clk
0:00:02.7]} 46. Ra3 {[%clk 0:00:44]} 46... e4 {[%clk 0:00:02.6]} 47. fxe4 {[%clk
0:00:43.6]} 47... fxe4 {[%clk 0:00:03.5]} 48. a6 {[%clk 0:00:44.1]} 48... Rd8
{[%clk 0:00:04.2]} 49. a7 {[%clk 0:00:43.6]} 49... Ra8 {[%clk 0:00:04.1]} 50.
Kb1 {[%clk 0:00:44]} 50... Kd5 {[%clk 0:00:04.4]} 51. Kc2 {[%clk 0:00:44.6]}
51... Kd4 {[%clk 0:00:04.5]} 52. Kd2 {[%clk 0:00:44.6]} 52... e3+ {[%clk
0:00:03]} 53. Ke2 {[%clk 0:00:44.3]} 53... Kc4 {[%clk 0:00:01.3]} 54. Kxe3
{[%clk 0:00:44.2]} 1-0

[Event "Early-Titled-Tuesday-Blitz-October-03-2023"]
[Site "Chess.com"]
[Date "2023.10.03"]
[Round "7"]
[White "knightinshiningarmour16"]
[Black "cycygogne"]
[Result "0-1"]
[WhiteElo "2104"]
[BlackElo "2230"]
[TimeControl "180+1"]
[EndTime "9:20:00 PDT"]
[Termination "cycygogne won by checkmate"]

1. d4 {[%clk 0:03:00]} 1... Nf6 {[%clk 0:02:59.1]} 2. Nf3 {[%clk 0:02:58.6]}
2... c5 {[%clk 0:02:59.1]} 3. d5 {[%clk 0:02:56]} 3... e6 {[%clk 0:02:58.9]} 4.
c4 {[%clk 0:02:54.7]} 4... exd5 {[%clk 0:02:58.4]} 5. cxd5 {[%clk 0:02:55.6]}
5... d6 {[%clk 0:02:59]} 6. Nc3 {[%clk 0:02:54.9]} 6... g6 {[%clk 0:02:58.5]} 7.
e4 {[%clk 0:02:54.8]} 7... Bg7 {[%clk 0:02:58.5]} 8. Bf4 {[%clk 0:02:53.2]} 8...
a6 {[%clk 0:02:54.6]} 9. Nd2 {[%clk 0:02:49.8]} 9... b5 {[%clk 0:02:51.7]} 10.
a4 {[%clk 0:02:45.7]} 10... b4 {[%clk 0:02:48.2]} 11. Ne2 {[%clk 0:02:42.1]}
11... O-O {[%clk 0:02:43.1]} 12. f3 {[%clk 0:02:39]} 12... Nh5 {[%clk
0:02:40.6]} 13. Be3 {[%clk 0:02:36.1]} 13... Nd7 {[%clk 0:02:39.2]} 14. Rb1
{[%clk 0:02:32.4]} 14... Ne5 {[%clk 0:02:38]} 15. Nf4 {[%clk 0:02:21.6]} 15...
Nxf4 {[%clk 0:02:33.6]} 16. Bxf4 {[%clk 0:02:21.1]} 16... f5 {[%clk 0:02:33.8]}
17. Bg3 {[%clk 0:02:12]} 17... fxe4 {[%clk 0:02:12.4]} 18. fxe4 {[%clk
0:02:11.3]} 18... Qg5 {[%clk 0:02:08.5]} 19. Be2 {[%clk 0:02:01]} 19... Qe3
{[%clk 0:02:07.8]} 20. Qb3 {[%clk 0:01:41.6]} 20... Qg5 {[%clk 0:01:56.1]} 21.
Nf3 {[%clk 0:01:32.4]} 21... Nxf3+ {[%clk 0:01:55.2]} 22. Bxf3 {[%clk
0:01:31.7]} 22... Bd4 {[%clk 0:01:54.6]} 23. Bxd6 {[%clk 0:01:26.4]} 23... Bg4
{[%clk 0:01:49.6]} 24. Bg3 {[%clk 0:01:19.9]} 24... Rae8 {[%clk 0:01:38.4]} 25.
d6+ {[%clk 0:00:48.7]} 25... Kh8 {[%clk 0:01:37.9]} 26. Qd3 {[%clk 0:00:32]}
26... Qh5 {[%clk 0:01:24.1]} 27. Bxg4 {[%clk 0:00:19.9]} 27... Qxg4 {[%clk
0:01:25]} 28. e5 {[%clk 0:00:18.2]} 28... Rf5 {[%clk 0:01:15.8]} 29. d7 {[%clk
0:00:16.3]} 29... Rd8 {[%clk 0:01:05.8]} 30. e6 {[%clk 0:00:15.7]} 30... Qg5
{[%clk 0:00:55.6]} 31. e7 {[%clk 0:00:13.9]} 31... Qxe7+ {[%clk 0:00:55.3]} 32.
Qe2 {[%clk 0:00:14]} 32... Qxd7 {[%clk 0:00:53.6]} 33. Rf1 {[%clk 0:00:13.2]}
33... Re8 {[%clk 0:00:50.2]} 34. Rxf5 {[%clk 0:00:12.8]} 34... Rxe2+ {[%clk
0:00:49.5]} 35. Kxe2 {[%clk 0:00:13.7]} 35... gxf5 {[%clk 0:00:44.2]} 36. Rf1
{[%clk 0:00:14.1]} 36... Qe6+ {[%clk 0:00:44.1]} 37. Kd3 {[%clk 0:00:13.9]}
37... Kg7 {[%clk 0:00:40.3]} 38. Re1 {[%clk 0:00:13.5]} 38... Qb3+ {[%clk
0:00:38.4]} 39. Kd2 {[%clk 0:00:12.6]} 39... Qxb2+ {[%clk 0:00:36.8]} 40. Kd3
{[%clk 0:00:12.6]} 40... Qc3+ {[%clk 0:00:33.1]} 41. Ke2 {[%clk 0:00:12.7]}
41... b3 {[%clk 0:00:30.7]} 42. Kf1 {[%clk 0:00:13]} 42... Qd3+ {[%clk
0:00:29.6]} 43. Re2 {[%clk 0:00:10.5]} 43... b2 {[%clk 0:00:29.6]} 44. Be1
{[%clk 0:00:10.6]} 44... b1=Q {[%clk 0:00:29.1]} 45. g3 {[%clk 0:00:10.8]} 45...
Qbc2 {[%clk 0:00:28.1]} 46. Kg2 {[%clk 0:00:08.7]} 46... Qcxe2+ {[%clk 0:00:28]}
47. Kh3 {[%clk 0:00:09]} 47... Qf1+ {[%clk 0:00:26.7]} 48. Kh4 {[%clk
0:00:08.1]} 48... Qe4+ {[%clk 0:00:26.3]} 49. Kh5 {[%clk 0:00:08.1]} 49... Qg4#
{[%clk 0:00:26.3]} 0-1

[Event "Early-Titled-Tuesday-Blitz-October-03-2023"]
[Site "Chess.com"]
[Date "2023.10.03"]
[Round "7"]
[White "falzehope0"]
[Black "JosefineHeinemann"]
[Result "0-1"]
[WhiteElo "2368"]
[BlackElo "2527"]
[TimeControl "180+1"]
[EndTime "9:20:02 PDT"]
[Termination "JosefineHeinemann won by checkmate"]

1. d4 {[%clk 0:02:59.5]} 1... Nf6 {[%clk 0:02:58.7]} 2. e3 {[%clk 0:02:58.3]}
2... d5 {[%clk 0:02:52.5]} 3. Bd3 {[%clk 0:02:57.6]} 3... c5 {[%clk 0:02:50.2]}
4. c3 {[%clk 0:02:57.6]} 4... Nc6 {[%clk 0:02:47.7]} 5. f4 {[%clk 0:02:56.8]}
5... Bg4 {[%clk 0:02:46.6]} 6. Ne2 {[%clk 0:02:55.8]} 6... e6 {[%clk 0:02:46.1]}
7. Nd2 {[%clk 0:02:54.5]} 7... Be7 {[%clk 0:02:45.3]} 8. O-O {[%clk 0:02:54.5]}
8... O-O {[%clk 0:02:43.9]} 9. Nf3 {[%clk 0:02:53.7]} 9... Bf5 {[%clk
0:02:33.2]} 10. Ng3 {[%clk 0:02:51.9]} 10... Bxd3 {[%clk 0:02:32.3]} 11. Qxd3
{[%clk 0:02:51.8]} 11... g6 {[%clk 0:02:26.2]} 12. Ne5 {[%clk 0:02:51.1]} 12...
Rc8 {[%clk 0:02:14.2]} 13. Bd2 {[%clk 0:02:45.3]} 13... Nd7 {[%clk 0:02:06.6]}
14. Qe2 {[%clk 0:02:42.7]} 14... f6 {[%clk 0:02:06.3]} 15. Nd3 {[%clk
0:02:38.3]} 15... c4 {[%clk 0:02:03.7]} 16. Nf2 {[%clk 0:02:35.6]} 16... Bd6
{[%clk 0:02:03.9]} 17. e4 {[%clk 0:02:34]} 17... Qe7 {[%clk 0:01:59.9]} 18. e5
{[%clk 0:02:32.5]} 18... Bc7 {[%clk 0:01:59.8]} 19. Ng4 {[%clk 0:01:59.3]} 19...
fxe5 {[%clk 0:01:58.9]} 20. fxe5 {[%clk 0:01:58.7]} 20... Rxf1+ {[%clk
0:01:56.2]} 21. Rxf1 {[%clk 0:01:57.4]} 21... Rf8 {[%clk 0:01:56.8]} 22. Bh6
{[%clk 0:01:46.1]} 22... Rxf1+ {[%clk 0:01:55.7]} 23. Qxf1 {[%clk 0:01:45.2]}
23... Qf7 {[%clk 0:01:54.8]} 24. Qe2 {[%clk 0:01:36.6]} 24... Bd8 {[%clk
0:01:42.5]} 25. Qe3 {[%clk 0:01:34]} 25... Kh8 {[%clk 0:01:34.9]} 26. Bg5 {[%clk
0:01:29.4]} 26... Bxg5 {[%clk 0:01:31.1]} 27. Qxg5 {[%clk 0:01:28.7]} 27... Ne7
{[%clk 0:01:31.1]} 28. Nh6 {[%clk 0:01:12.8]} 28... Qf8 {[%clk 0:01:30.1]} 29.
h4 {[%clk 0:01:03.4]} 29... b5 {[%clk 0:01:29.2]} 30. h5 {[%clk 0:01:02.4]}
30... a5 {[%clk 0:01:20.3]} 31. a3 {[%clk 0:00:58.9]} 31... Nb8 {[%clk
0:00:59.1]} 32. Qg4 {[%clk 0:00:48.5]} 32... Qxh6 {[%clk 0:00:57]} 33. Qxe6
{[%clk 0:00:47.5]} 33... Qf8 {[%clk 0:00:54.1]} 34. h6 {[%clk 0:00:35.4]} 34...
Nbc6 {[%clk 0:00:45.2]} 35. Qh3 {[%clk 0:00:24.4]} 35... Nf5 {[%clk 0:00:39.3]}
36. Nxf5 {[%clk 0:00:20.4]} 36... Qxf5 {[%clk 0:00:40.2]} 37. Qh4 {[%clk
0:00:19.6]} 37... Kg8 {[%clk 0:00:27]} 38. g4 {[%clk 0:00:16.3]} 38... Qf4
{[%clk 0:00:20.5]} 39. Kg2 {[%clk 0:00:16.3]} 39... Kf7 {[%clk 0:00:19.5]} 40.
Kg1 {[%clk 0:00:16.3]} 40... Ke6 {[%clk 0:00:19.7]} 41. Kg2 {[%clk 0:00:16.7]}
41... Ne7 {[%clk 0:00:20]} 42. Kg1 {[%clk 0:00:16.7]} 42... g5 {[%clk
0:00:20.5]} 43. Qh5 {[%clk 0:00:16.8]} 43... Ng6 {[%clk 0:00:20.7]} 44. Kg2
{[%clk 0:00:16.6]} 44... Qe3 {[%clk 0:00:19.9]} 45. Kh1 {[%clk 0:00:16]} 45...
Qc1+ {[%clk 0:00:17.9]} 46. Kg2 {[%clk 0:00:15.5]} 46... Qxb2+ {[%clk
0:00:18.5]} 47. Kg1 {[%clk 0:00:15.7]} 47... Qc1+ {[%clk 0:00:18.7]} 48. Kh2
{[%clk 0:00:15.7]} 48... Qf4+ {[%clk 0:00:18.2]} 49. Kh1 {[%clk 0:00:16.1]}
49... b4 {[%clk 0:00:19]} 50. cxb4 {[%clk 0:00:14.8]} 50... axb4 {[%clk
0:00:19.9]} 51. axb4 {[%clk 0:00:15.5]} 51... c3 {[%clk 0:00:20.3]} 52. Qh3
{[%clk 0:00:14.9]} 52... c2 {[%clk 0:00:19.7]} 53. Qc3 {[%clk 0:00:14.9]} 53...
c1=Q+ {[%clk 0:00:18.1]} 54. Kg2 {[%clk 0:00:15.1]} 54... Qxc3 {[%clk
0:00:17.9]} 55. b5 {[%clk 0:00:14]} 55... Qcg3+ {[%clk 0:00:18]} 56. Kh1 {[%clk
0:00:13.2]} 56... Qf1# {[%clk 0:00:18.7]} 0-1

[Event "Early-Titled-Tuesday-Blitz-October-03-2023"]
[Site "Chess.com"]
[Date "2023.10.03"]
[Round "7"]
[White "Elprofessor21"]
[Black "Anton_Demchenko"]
[Result "0-1"]
[WhiteElo "2670"]
[BlackElo "2920"]
[TimeControl "180+1"]
[EndTime "9:20:03 PDT"]
[Termination "Anton_Demchenko won by resignation"]

1. e4 {[%clk 0:03:00.9]} 1... e5 {[%clk 0:02:59.4]} 2. Nf3 {[%clk 0:02:57.4]}
2... Nc6 {[%clk 0:02:59.7]} 3. d4 {[%clk 0:02:54.4]} 3... exd4 {[%clk
0:02:59.5]} 4. Nxd4 {[%clk 0:02:54.7]} 4... Bc5 {[%clk 0:02:59.6]} 5. Nb3 {[%clk
0:02:52.9]} 5... Bb6 {[%clk 0:02:59.5]} 6. Nc3 {[%clk 0:02:48.8]} 6... d6 {[%clk
0:02:58.8]} 7. Nd5 {[%clk 0:02:35.3]} 7... Nf6 {[%clk 0:02:52.8]} 8. Nxb6 {[%clk
0:02:29.1]} 8... axb6 {[%clk 0:02:52.9]} 9. Bd3 {[%clk 0:02:29.1]} 9... O-O
{[%clk 0:02:27.6]} 10. O-O {[%clk 0:02:29.1]} 10... Re8 {[%clk 0:02:28.3]} 11.
Re1 {[%clk 0:02:28.2]} 11... Ne5 {[%clk 0:02:12.9]} 12. Bb5 {[%clk 0:01:59.9]}
12... Bd7 {[%clk 0:02:11.2]} 13. Bxd7 {[%clk 0:01:57.7]} 13... Qxd7 {[%clk
0:02:12.1]} 14. Bg5 {[%clk 0:01:51.5]} 14... Qd8 {[%clk 0:02:07.7]} 15. Nd4
{[%clk 0:01:38.4]} 15... h6 {[%clk 0:02:07]} 16. Bh4 {[%clk 0:01:36.6]} 16...
Ng6 {[%clk 0:02:06.5]} 17. Bxf6 {[%clk 0:01:34.1]} 17... Qxf6 {[%clk 0:02:07.4]}
18. c3 {[%clk 0:01:31.5]} 18... Re5 {[%clk 0:02:01.8]} 19. Qf3 {[%clk
0:01:12.1]} 19... Qxf3 {[%clk 0:01:52]} 20. Nxf3 {[%clk 0:01:11.8]} 20... Rea5
{[%clk 0:01:41.6]} 21. a3 {[%clk 0:01:09.5]} 21... f6 {[%clk 0:01:38.5]} 22. g3
{[%clk 0:01:04.1]} 22... Ne5 {[%clk 0:01:37.5]} 23. Nxe5 {[%clk 0:00:58.5]}
23... fxe5 {[%clk 0:01:37.5]} 24. f3 {[%clk 0:00:55.3]} 24... g5 {[%clk
0:01:36.5]} 25. Kf2 {[%clk 0:00:52.2]} 25... Rf8 {[%clk 0:01:33.1]} 26. Ke3
{[%clk 0:00:50.8]} 26... Raa8 {[%clk 0:01:18.3]} 27. a4 {[%clk 0:00:37.9]} 27...
Kf7 {[%clk 0:01:09.9]} 28. b4 {[%clk 0:00:30.3]} 28... Ke6 {[%clk 0:01:08.6]}
29. Re2 {[%clk 0:00:29.7]} 29... Rf7 {[%clk 0:01:00.7]} 30. Rf2 {[%clk
0:00:28.2]} 30... c6 {[%clk 0:01:00]} 31. h3 {[%clk 0:00:20.6]} 31... d5 {[%clk
0:00:57.4]} 32. Rd2 {[%clk 0:00:11.5]} 32... Raf8 {[%clk 0:00:56.5]} 33. Rf1
{[%clk 0:00:10.8]} 33... h5 {[%clk 0:00:53.5]} 34. exd5+ {[%clk 0:00:10.5]}
34... cxd5 {[%clk 0:00:53.5]} 35. Rdf2 {[%clk 0:00:09.5]} 35... Rc7 {[%clk
0:00:51.7]} 36. Kd3 {[%clk 0:00:08.1]} 36... Rfc8 {[%clk 0:00:49.9]} 37. Rc1
{[%clk 0:00:08.1]} 37... d4 {[%clk 0:00:50.2]} 38. c4 {[%clk 0:00:08.4]} 38...
Rf7 {[%clk 0:00:46.6]} 39. Re1 {[%clk 0:00:08.7]} 39... Rcf8 {[%clk 0:00:45.3]}
40. Ke4 {[%clk 0:00:08.7]} 40... h4 {[%clk 0:00:44.7]} 41. Rg1 {[%clk
0:00:08.1]} 41... hxg3 {[%clk 0:00:42.3]} 42. Rxg3 {[%clk 0:00:09]} 42... Rf4+
{[%clk 0:00:42.7]} 43. Kd3 {[%clk 0:00:09.6]} 43... R8f5 {[%clk 0:00:39.7]} 44.
Ke2 {[%clk 0:00:08.6]} 44... e4 {[%clk 0:00:39.1]} 45. Rf1 {[%clk 0:00:07.8]}
45... Ke5 {[%clk 0:00:34.1]} 46. Rfg1 {[%clk 0:00:06.5]} 46... d3+ {[%clk
0:00:32.9]} 47. Kd2 {[%clk 0:00:05.9]} 47... Rxf3 {[%clk 0:00:25.7]} 48. Rxg5
{[%clk 0:00:04.8]} 48... Kd4 {[%clk 0:00:24.1]} 49. Rxf5 {[%clk 0:00:02.4]}
49... Rxf5 {[%clk 0:00:25]} 50. Re1 {[%clk 0:00:01.4]} 50... Rf2+ {[%clk
0:00:24.7]} 0-1

[Event "Early-Titled-Tuesday-Blitz-October-03-2023"]
[Site "Chess.com"]
[Date "2023.10.03"]
[Round "7"]
[White "NikolaGry"]
[Black "Sethu0025"]
[Result "0-1"]
[WhiteElo "2717"]
[BlackElo "2867"]
[TimeControl "180+1"]
[EndTime "9:20:04 PDT"]
[Termination "Sethu0025 won on time"]

1. e4 {[%clk 0:03:00.9]} 1... c5 {[%clk 0:02:59.6]} 2. Nf3 {[%clk 0:03:00.3]}
2... d6 {[%clk 0:02:59.9]} 3. Bb5+ {[%clk 0:03:00.1]} 3... Nd7 {[%clk
0:02:59.4]} 4. O-O {[%clk 0:02:58.9]} 4... a6 {[%clk 0:02:59]} 5. Bxd7+ {[%clk
0:02:55.7]} 5... Bxd7 {[%clk 0:02:58.7]} 6. c3 {[%clk 0:02:53]} 6... e6 {[%clk
0:02:52.7]} 7. d4 {[%clk 0:02:50.2]} 7... Ne7 {[%clk 0:02:48.1]} 8. Nbd2 {[%clk
0:02:25.2]} 8... Ng6 {[%clk 0:02:46.4]} 9. Re1 {[%clk 0:02:19]} 9... Be7 {[%clk
0:02:45.4]} 10. g3 {[%clk 0:02:12.6]} 10... O-O {[%clk 0:02:44]} 11. h4 {[%clk
0:02:11.7]} 11... cxd4 {[%clk 0:02:35.6]} 12. cxd4 {[%clk 0:02:09.4]} 12... Re8
{[%clk 0:02:32.6]} 13. h5 {[%clk 0:02:07]} 13... Nf8 {[%clk 0:02:32.4]} 14. Nf1
{[%clk 0:02:04.8]} 14... h6 {[%clk 0:02:30.2]} 15. Bf4 {[%clk 0:02:01.1]} 15...
Qb6 {[%clk 0:02:27.2]} 16. Ne3 {[%clk 0:01:53.4]} 16... Rac8 {[%clk 0:02:25]}
17. Re2 {[%clk 0:01:43]} 17... Nh7 {[%clk 0:02:20.1]} 18. b3 {[%clk 0:01:28.3]}
18... Nf6 {[%clk 0:02:19]} 19. Nc4 {[%clk 0:01:27.5]} 19... Qc7 {[%clk
0:02:03.7]} 20. Rc1 {[%clk 0:01:14.4]} 20... Qb8 {[%clk 0:02:03.6]} 21. Nb6
{[%clk 0:00:56.6]} 21... Rxc1 {[%clk 0:02:01.1]} 22. Qxc1 {[%clk 0:00:56.5]}
22... Bb5 {[%clk 0:01:58.1]} 23. Re1 {[%clk 0:00:52.1]} 23... Qd8 {[%clk
0:01:51.4]} 24. Nc4 {[%clk 0:00:45.7]} 24... Nxh5 {[%clk 0:01:50.8]} 25. Bxh6
{[%clk 0:00:44]} 25... d5 {[%clk 0:01:25.4]} 26. exd5 {[%clk 0:00:42.3]} 26...
Qxd5 {[%clk 0:01:25]} 27. Nce5 {[%clk 0:00:40]} 27... f6 {[%clk 0:01:08]} 28.
Qd1 {[%clk 0:00:31.9]} 28... gxh6 {[%clk 0:01:04.6]} 29. a4 {[%clk 0:00:23.4]}
29... Bc6 {[%clk 0:00:59.2]} 30. Nxc6 {[%clk 0:00:20.7]} 30... bxc6 {[%clk
0:01:00.1]} 31. Qd3 {[%clk 0:00:17.8]} 31... Qf5 {[%clk 0:00:52]} 32. Re4 {[%clk
0:00:17.2]} 32... Ng7 {[%clk 0:00:50.6]} 33. Qe2 {[%clk 0:00:15.1]} 33... Qd5
{[%clk 0:00:44]} 34. Rg4 {[%clk 0:00:13.3]} 34... Kf7 {[%clk 0:00:40.6]} 35. Nh4
{[%clk 0:00:10.5]} 35... Rg8 {[%clk 0:00:39.9]} 36. Rf4 {[%clk 0:00:08.9]} 36...
Bd6 {[%clk 0:00:39]} 37. Rf3 {[%clk 0:00:08.6]} 37... Nf5 {[%clk 0:00:36]} 38.
Nxf5 {[%clk 0:00:07.5]} 38... exf5 {[%clk 0:00:36.9]} 39. Kg2 {[%clk 0:00:06.2]}
39... f4 {[%clk 0:00:34.2]} 40. Qxa6 {[%clk 0:00:04.5]} 40... fxg3 {[%clk
0:00:34.5]} 41. Qb7+ {[%clk 0:00:04.6]} 41... Ke6 {[%clk 0:00:33.6]} 42. Qh7
{[%clk 0:00:01.4]} 42... Rg5 {[%clk 0:00:26.9]} 43. Qd3 {[%clk 0:00:01.5]} 43...
gxf2+ {[%clk 0:00:26.1]} 44. Kxf2 {[%clk 0:00:02.2]} 44... Rf5 {[%clk
0:00:25.7]} 45. Qe3+ {[%clk 0:00:02.3]} 45... Kf7 {[%clk 0:00:23.9]} 46. Rxf5
{[%clk 0:00:02.3]} 46... Qxf5+ {[%clk 0:00:24.8]} 47. Ke2 {[%clk 0:00:02.6]}
47... h5 {[%clk 0:00:22.9]} 0-1

[Event "Early-Titled-Tuesday-Blitz-October-03-2023"]
[Site "Chess.com"]
[Date "2023.10.03"]
[Round "7"]
[White "LoaySameer"]
[Black "esrosenberg"]
[Result "1-0"]
[WhiteElo "2584"]
[BlackElo "2359"]
[TimeControl "180+1"]
[EndTime "9:20:09 PDT"]
[Termination "LoaySameer won by resignation"]

1. d4 {[%clk 0:02:59.9]} 1... d5 {[%clk 0:03:00]} 2. c4 {[%clk 0:03:00.2]} 2...
e6 {[%clk 0:03:00.7]} 3. Nf3 {[%clk 0:03:00.5]} 3... c5 {[%clk 0:02:54.1]} 4.
cxd5 {[%clk 0:03:00.1]} 4... exd5 {[%clk 0:02:55]} 5. Nc3 {[%clk 0:03:00.8]}
5... Nf6 {[%clk 0:02:54.9]} 6. Bg5 {[%clk 0:03:00.9]} 6... Nc6 {[%clk
0:02:48.9]} 7. e3 {[%clk 0:02:52.4]} 7... Be6 {[%clk 0:02:48]} 8. dxc5 {[%clk
0:02:48.7]} 8... Bxc5 {[%clk 0:02:48.3]} 9. Bd3 {[%clk 0:02:49.6]} 9... O-O
{[%clk 0:02:45.6]} 10. O-O {[%clk 0:02:49.8]} 10... h6 {[%clk 0:02:46.3]} 11.
Bh4 {[%clk 0:02:49.5]} 11... a6 {[%clk 0:02:43.7]} 12. Rc1 {[%clk 0:02:48.8]}
12... Be7 {[%clk 0:02:44.3]} 13. Bb1 {[%clk 0:02:47.4]} 13... Re8 {[%clk
0:02:28.5]} 14. Nd4 {[%clk 0:02:46.5]} 14... Nxd4 {[%clk 0:02:23.6]} 15. Qxd4
{[%clk 0:02:46.4]} 15... Rc8 {[%clk 0:02:24.1]} 16. Rfd1 {[%clk 0:02:46.2]}
16... Rc4 {[%clk 0:02:23.9]} 17. Qxc4 {[%clk 0:02:44.6]} 17... dxc4 {[%clk
0:02:24.3]} 18. Rxd8 {[%clk 0:02:45.5]} 18... Rxd8 {[%clk 0:02:23.7]} 19. e4
{[%clk 0:02:38]} 19... b5 {[%clk 0:02:17.2]} 20. f4 {[%clk 0:02:34]} 20... Bc5+
{[%clk 0:02:09.9]} 21. Kf1 {[%clk 0:02:28.1]} 21... Rd2 {[%clk 0:02:10]} 22. Rc2
{[%clk 0:02:27.1]} 22... Rxc2 {[%clk 0:01:53]} 23. Bxc2 {[%clk 0:02:26.9]} 23...
Bd4 {[%clk 0:01:53.7]} 24. Bf2 {[%clk 0:02:21.6]} 24... Bxf2 {[%clk 0:01:48]}
25. Kxf2 {[%clk 0:02:21.8]} 25... Ng4+ {[%clk 0:01:48.8]} 26. Ke2 {[%clk
0:02:12.9]} 26... Nxh2 {[%clk 0:01:37.9]} 27. f5 {[%clk 0:02:12.7]} 27... Bd7
{[%clk 0:01:31.8]} 28. Ke3 {[%clk 0:02:00.7]} 28... Ng4+ {[%clk 0:01:32.3]} 29.
Kd4 {[%clk 0:02:01]} 29... f6 {[%clk 0:01:26.6]} 30. Kc5 {[%clk 0:01:55.5]}
30... Ne3 {[%clk 0:01:23.5]} 31. Bd1 {[%clk 0:01:43.2]} 31... Nxg2 {[%clk
0:01:23.5]} 32. Kb6 {[%clk 0:01:29.8]} 32... Ne3 {[%clk 0:01:20.8]} 33. Be2
{[%clk 0:01:24]} 33... b4 {[%clk 0:01:10.2]} 34. Nb1 {[%clk 0:01:00.1]} 34...
Bb5 {[%clk 0:00:55.3]} 35. Bh5 {[%clk 0:00:44.5]} 35... Kf8 {[%clk 0:00:49.7]}
36. Kc5 {[%clk 0:00:44.2]} 36... c3 {[%clk 0:00:30.7]} 37. bxc3 {[%clk
0:00:44.4]} 37... bxc3 {[%clk 0:00:30.9]} 38. Nxc3 {[%clk 0:00:43]} 38... Bd3
{[%clk 0:00:25.6]} 39. Kd4 {[%clk 0:00:41.7]} 39... Nxf5+ {[%clk 0:00:20.8]} 40.
Kxd3 {[%clk 0:00:36.9]} 40... Nd6 {[%clk 0:00:17.2]} 41. a4 {[%clk 0:00:32.3]}
41... Ke7 {[%clk 0:00:13.2]} 42. Kd4 {[%clk 0:00:31.5]} 42... a5 {[%clk
0:00:12]} 43. Kc5 {[%clk 0:00:29.7]} 43... Ke6 {[%clk 0:00:08.8]} 44. Kb6 {[%clk
0:00:29]} 44... Ke5 {[%clk 0:00:09]} 45. Kxa5 {[%clk 0:00:28.8]} 45... Nc4+
{[%clk 0:00:05.2]} 46. Kb4 {[%clk 0:00:27.2]} 46... Nb6 {[%clk 0:00:02.6]} 47.
a5 {[%clk 0:00:26.9]} 47... Nd7 {[%clk 0:00:02.3]} 1-0